lending/lending_fUSD_20240219
["ID","MTS","AMOUNT","RATE_DAILY","PERIOD"]
[314481845,1708375907015,-500.0,0.00047123,30]
[314481846,1708375907024,-500.0,0.00047123,30]
[314481847,1708375907034,-2580.06,0.00047123,30]
[314481848,1708375907043,-529.22083642,0.00047123,30]
[314481849,1708375907053,-500.0,0.00047123,30]
[314481850,1708375907063,-500.0,0.00047123,30]
[314481851,1708375907074,-874.69,0.00047123,30]
[314481852,1708375907084,-580.6,0.00047123,30]
[314481853,1708375907097,-500.0,0.00047123,30]
[314481854,1708375907106,-742.82,0.00047123,30]
[314481855,1708375907116,-1385.86,0.00047123,30]
[314481856,1708375907126,-626.34,0.00047123,30]
[314481857,1708375907137,-500.0,0.00047123,30]
[314481858,1708375907146,-1122.0,0.00047123,30]
[314481859,1708375907155,-500.0,0.00047123,30]
[314481860,1708375907166,-500.0,0.00047123,30]
[314481861,1708375907176,-500.0,0.00047123,30]
[314481862,1708375907186,-500.0,0.00047123,30]
[314481863,1708375907194,-500.0,0.00047123,30]
[314481864,1708375907204,-673.8,0.00047123,30]
[314481865,1708375907213,-948.86,0.00047123,30]
[314481866,1708375907223,-500.0,0.00047123,30]
[314481867,1708375907232,-500.0,0.00047123,30]
[314481868,1708375907241,-500.0,0.00047123,30]
[314481869,1708375907251,-500.0,0.00047123,30]
[314481870,1708375907261,-500.0,0.00047123,30]
[314481871,1708375907271,-1101.95,0.00047123,30]
[314481872,1708375907281,-500.0,0.00047123,30]
[314481873,1708375907290,-500.0,0.00047123,30]
[314481874,1708375907300,-500.0,0.00047123,30]
[314481875,1708375907309,-319.80576276,0.00047123,30]
[314481876,1708375907318,-532.01012462,0.00047123,30]
[314481877,1708375907328,-681.52,0.00047123,30]
[314481878,1708375907337,-500.0,0.00047123,30]
[314481879,1708375907346,-500.0,0.00047123,30]
[314481880,1708375907356,-1174.33,0.00047123,30]
[314481881,1708375907365,-500.0,0.00047123,30]
[314481882,1708375907375,-981.09,0.00047123,30]
[314481883,1708375907384,-500.0,0.00047123,30]
[314481884,1708375907393,-4511.29,0.00047123,30]
[314481885,1708375907403,-1043.21,0.00047123,30]
[314481886,1708375907413,-500.0,0.00047123,30]
[314481887,1708375907423,-2077.3,0.00047123,30]
[314481888,1708375907432,-500.0,0.00047123,30]
[314481889,1708375907441,-500.0,0.00047123,30]
[314481890,1708375907451,-500.0,0.00047123,30]
[314481891,1708375907460,-500.0,0.00047123,30]
[314481892,1708375907469,-500.0,0.00047123,30]
[314481893,1708375907478,-250.0,0.00047123,30]
[314481894,1708375907489,-500.0,0.00047123,30]
[314481895,1708375907499,-500.0,0.00047123,30]
[314481896,1708375907509,-888.3,0.00047123,30]
[314481897,1708375907519,-610.38,0.00047123,30]
[314481898,1708375907529,-500.0,0.00047123,30]
[314481899,1708375907538,-500.0,0.00047123,30]
[314481900,1708375907547,-500.0,0.00047123,30]
[314481901,1708375907557,-3093.94,0.00047123,30]
[314481902,1708375907566,-1342.73,0.00047123,30]
[314481903,1708375907576,-500.0,0.00047123,30]
[314481904,1708375907586,-500.0,0.00047123,30]
[314481905,1708375907595,-4450.76,0.00047123,30]
[314481906,1708375907605,-2986.67,0.00047123,30]
[314481907,1708375907615,-927.23,0.00047123,30]
[314481908,1708375907625,-500.0,0.00047123,30]
[314481909,1708375907635,-500.0,0.00047123,30]
[314481910,1708375907645,-542.93950816,0.00047123,30]
[314481911,1708375907655,-500.0,0.00047123,30]
[314481912,1708375907665,-4576.97,0.00047123,30]
[314481913,1708375907674,-1346.18,0.00047123,30]
[314481914,1708375907684,-500.0,0.00047123,30]
[314481915,1708375907693,-2880.36,0.00047123,30]
[314481916,1708375907703,-500.0,0.00047123,30]
[314481917,1708375907713,-500.0,0.00047123,30]
[314481918,1708375907723,-500.0,0.00047123,30]
[314481919,1708375907733,-540.25,0.00047123,30]
[314481920,1708375907742,-942.11,0.00047123,30]
[314481921,1708375907752,-500.0,0.00047123,30]
[314481922,1708375907762,-500.0,0.00047123,30]
[314481923,1708375907772,-802.39,0.00047123,30]
[314481924,1708375907782,-500.0,0.00047123,30]
[314481925,1708375907792,-500.0,0.00047123,30]
[314481926,1708375907802,-500.0,0.00047123,30]
[314481927,1708375907812,-500.0,0.00047123,30]
[314481928,1708375908092,-3501.98,0.00047123,30]
[314481929,1708375908112,-3067.49,0.00047123,30]
[314481930,1708375908122,-506.48952096,0.00047123,30]
[314481931,1708375908133,-500.0,0.00047123,30]
[314481932,1708375908142,-500.0,0.00047123,30]
[314481933,1708375908151,-752.55,0.00047123,30]
[314481934,1708375908161,-500.0,0.00047123,30]
[314481935,1708375908171,-500.0,0.00047123,30]
[314481936,1708375908180,-500.0,0.00047123,30]
[314481937,1708375908189,-500.0,0.00047123,30]
[314481938,1708375908199,-500.0,0.00047123,30]
[314481939,1708375908209,-983.46,0.00047123,30]
[314481940,1708375908219,-500.0,0.00047123,30]
[314481941,1708375908229,-2258.21,0.00047123,30]
[314481942,1708375908238,-500.0,0.00047123,30]
[314481943,1708375908247,-3285.56,0.00047123,30]
[314481944,1708375908257,-708.73,0.00047123,30]
[314481945,1708375908266,-500.0,0.00047123,30]
[314481946,1708375908275,-500.0,0.00047123,30]
[314481947,1708375908285,-1637.57,0.00047123,30]
[314481948,1708375908295,-500.0,0.00047123,30]
[314481949,1708375908304,-500.0,0.00047123,30]
[314481950,1708375908313,-764.0,0.00047123,30]
[314481951,1708375908323,-2380.23,0.00047123,30]
[314481952,1708375908333,-947.27,0.00047123,30]
[314481953,1708375908342,-512.16342364,0.00047123,30]
[314481954,1708375908352,-500.0,0.00047123,30]
[314481955,1708375908361,-500.0,0.00047123,30]
[314481956,1708375908371,-500.0,0.00047123,30]
[314481957,1708375908380,-518.6156913,0.00047123,30]
[314481958,1708375908389,-500.0,0.00047123,30]
[314481959,1708375908399,-500.0,0.00047123,30]
[314481960,1708375908408,-23500.73,0.00047123,30]
[314481961,1708375908418,-5708.36,0.00047123,30]
[314481962,1708375908427,-500.0,0.00047123,30]
[314481963,1708375908436,-500.0,0.00047123,30]
[314481964,1708375908446,-500.0,0.00047123,30]
[314481965,1708375908455,-500.0,0.00047123,30]
[314481966,1708375908464,-521.33,0.00047123,30]
[314481967,1708375908474,-500.0,0.00047123,30]
[314481968,1708375908485,-500.0,0.00047123,30]
[314481969,1708375908494,-1961.93,0.00047123,30]
[314481970,1708375908504,-3029.82,0.00047123,30]
[314481971,1708375908514,-500.0,0.00047123,30]
[314481972,1708375908523,-532.9,0.00047123,30]
[314481973,1708375908533,-500.0,0.00047123,30]
[314481974,1708375908543,-2118.66,0.00047123,30]
[314481975,1708375908553,-599.57,0.00047123,30]
[314481976,1708375908562,-500.0,0.00047123,30]
[314481977,1708375908572,-500.0,0.00047123,30]
[314481978,1708375908582,-500.0,0.00047123,30]
[314481979,1708375908592,-500.0,0.00047123,30]
[314481980,1708375908602,-524.09417532,0.00047123,30]
[314481981,1708375908611,-500.0,0.00047123,30]
[314481982,1708375908621,-500.0,0.00047123,30]
[314481983,1708375908631,-2219.53,0.00047123,30]
[314481984,1708375908641,-2534.45,0.00047123,30]
[314481985,1708375908651,-500.0,0.00047123,30]
[314481986,1708375908661,-1000.0,0.00047123,30]
[314481987,1708375908671,-4072.8,0.00047123,30]
[314481988,1708375908681,-6525.8,0.00047123,30]
[314481989,1708375908690,-500.0,0.00047123,30]
[314481990,1708375908699,-1226.32,0.00047123,30]
[314481991,1708375908710,-3574.68,0.00047123,30]
[314481992,1708375908719,-2415.59,0.00047123,30]
[314481993,1708375908729,-500.0,0.00047123,30]
[314481994,1708375908739,-500.0,0.00047123,30]
[314481995,1708375908748,-500.0,0.00047123,30]
[314481996,1708375908757,-500.0,0.00047123,30]
[314481997,1708375908766,-500.0,0.00047123,30]
[314481998,1708375908776,-895.28,0.00047123,30]
[314481999,1708375908787,-500.0,0.00047123,30]
[314482000,1708375908796,-1108.54,0.00047123,30]
[314482001,1708375908805,-500.0,0.00047123,30]
[314482002,1708375908815,-500.0,0.00047123,30]
[314482003,1708375908824,-571.87867764,0.00047123,30]
[314482004,1708375908833,-346.81171061,0.00047123,30]
[314482005,1708375908843,-500.0,0.00047123,30]
[314482006,1708375908852,-500.0,0.00047123,30]
[314482007,1708375908862,-2463.17,0.00047123,30]
[314482008,1708375908871,-1236.32,0.00047123,30]
[314482009,1708375908881,-500.0,0.00047123,30]
[314482010,1708375908890,-2672.0,0.00047123,30]
[314482011,1708375908899,-500.0,0.00047123,30]
[314482012,1708375908909,-500.0,0.00047123,30]
[314482013,1708375908918,-500.0,0.00047123,30]
[314482014,1708375908929,-768.47,0.00047123,30]
[314482015,1708375908938,-500.0,0.00047123,30]
[314482016,1708375908948,-500.0,0.00047123,30]
[314482017,1708375908957,-1506.06,0.00047123,30]
[314482018,1708375908966,-500.0,0.00047123,30]
[314482019,1708375908975,-4807.82,0.00047123,30]
[314482020,1708375908985,-1592.25,0.00047123,30]
[314482021,1708375908994,-2737.65,0.00047123,30]
[314482022,1708375909004,-947.04,0.00047123,30]
[314482023,1708375909013,-500.0,0.00047123,30]
[314482024,1708375909022,-500.0,0.00047123,30]
[314482025,1708375909032,-3582.15,0.00047123,30]
[314482026,1708375909041,-1685.16,0.00047123,30]
[314482027,1708375909051,-500.0,0.00047123,30]
[314482028,1708375909060,-1478.0,0.00047123,30]
[314482029,1708375909072,-500.0,0.00047123,30]
[314482030,1708375909084,-519.93728559,0.00047123,30]
[314482031,1708375909100,-840.54,0.00047123,30]
[314482032,1708375909110,-689.96,0.00047123,30]
[314482033,1708375909119,-558.54507409,0.00047123,30]
[314482034,1708375909128,-2210.61,0.00047123,30]
[314482035,1708375909139,-2915.8,0.00047123,30]
[314482036,1708375909148,-2089.99,0.00047123,30]
[314482037,1708375909158,-500.0,0.00047123,30]
[314482038,1708375909167,-500.0,0.00047123,30]
[314482039,1708375909177,-2806.73,0.00047123,30]
[314482040,1708375909186,-500.0,0.00047123,30]
[314482041,1708375909196,-500.0,0.00047123,30]
[314482042,1708375909205,-500.0,0.00047123,30]
[314482043,1708375909214,-500.0,0.00047123,30]
[314482044,1708375909223,-995.73,0.00047123,30]
[314482045,1708375909232,-500.0,0.00047123,30]
[314482046,1708375909242,-535.41,0.00047123,30]
[314482047,1708375909251,-4007.0,0.00047123,30]
[314482048,1708375909260,-500.0,0.00047123,30]
[314482049,1708375909270,-720.61,0.00047123,30]
[314482050,1708375909279,-5460.88,0.00047123,30]
[314482051,1708375909290,-500.0,0.00047123,30]
[314482052,1708375909299,-500.0,0.00047123,30]
[314482053,1708375909308,-770.97,0.00047123,30]
[314482054,1708375909317,-2873.04,0.00047123,30]
[314482055,1708375909326,-500.0,0.00047123,30]
[314482056,1708375909335,-500.0,0.00047123,30]
[314482057,1708375909345,-500.0,0.00047123,30]
[314482058,1708375909354,-500.0,0.00047123,30]
[314482059,1708375909363,-3954.52,0.00047123,30]
[314482060,1708375909373,-500.0,0.00047123,30]
[314482061,1708375909382,-3457.64,0.00047123,30]
[314482062,1708375909391,-2900.34,0.00047123,30]
[314482063,1708375909401,-1032.0,0.00047123,30]
[314482064,1708375909410,-1711.5,0.00047123,30]
[314482065,1708375909419,-500.0,0.00047123,30]
[314482066,1708375909431,-500.0,0.00047123,30]
[314482067,1708375909440,-1637.24,0.00047123,30]
[314482068,1708375909449,-500.0,0.00047123,30]
[314482069,1708375909459,-500.0,0.00047123,30]
[314482070,1708375909468,-1605.65,0.00047123,30]
[314482071,1708375909477,-500.0,0.00047123,30]
[314482072,1708375909487,-500.0,0.00047123,30]
[314482073,1708375909498,-4980.44,0.00047123,30]
[314482074,1708375909508,-1340.91,0.00047123,30]
[314482075,1708375909518,-1138.43,0.00047123,30]
[314482076,1708375909529,-500.0,0.00047123,30]
[314482077,1708375909539,-4358.32,0.00047123,30]
[314482078,1708375909549,-3294.28,0.00047123,30]
[314482079,1708375909558,-500.0,0.00047123,30]
[314482080,1708375909568,-500.0,0.00047123,30]
[314482081,1708375909577,-500.0,0.00047123,30]
[314482082,1708375909586,-500.0,0.00047123,30]
[314482083,1708375909596,-1721.24,0.00047123,30]
[314482084,1708375909605,-2226.31,0.00047123,30]
[314482085,1708375909615,-500.0,0.00047123,30]
[314482086,1708375909624,-500.0,0.00047123,30]
[314482087,1708375909633,-11469.95,0.00047123,30]
[314482088,1708375909642,-500.0,0.00047123,30]
[314482089,1708375909651,-500.0,0.00047123,30]
[314482090,1708375909661,-500.0,0.00047123,30]
[314482091,1708375909670,-500.0,0.00047123,30]
[314482092,1708375909679,-603.9194784,0.00047123,30]
[314482093,1708375909689,-1155.9,0.00047123,30]
[314482094,1708375909697,-914.27,0.00047123,30]
[314482095,1708375909707,-4304.4,0.00047123,30]
[314482096,1708375909716,-3503.11,0.00047123,30]
[314482097,1708375909725,-500.0,0.00047123,30]
[314482098,1708375909734,-500.0,0.00047123,30]
[314482099,1708375909744,-500.0,0.00047123,30]
[314482100,1708375909753,-2631.73,0.00047123,30]
[314482101,1708375909762,-500.0,0.00047123,30]
[314482102,1708375909772,-500.0,0.00047123,30]
[314482103,1708375909781,-500.0,0.00047123,30]
[314482104,1708375909790,-7606.19,0.00047123,30]
[314482105,1708375909798,-500.0,0.00047123,30]
[314482106,1708375909807,-500.0,0.00047123,30]
[314482107,1708375909817,-500.0,0.00047123,30]
[314482108,1708375909826,-2816.09,0.00047123,30]
[314482109,1708375909836,-1106.22,0.00047123,30]
[314482110,1708375909846,-500.0,0.00047123,30]
[314482111,1708375909855,-1288.03,0.00047123,30]
[314482112,1708375909864,-470.29101825,0.00047123,30]
[314482113,1708375909874,-500.0,0.00047123,30]
[314482114,1708375909883,-800.19,0.00047123,30]
[314482115,1708375909892,-500.0,0.00047123,30]
[314482116,1708375909902,-500.0,0.00047123,30]
[314482117,1708375909911,-500.0,0.00047123,30]
[314482118,1708375909920,-500.0,0.00047123,30]
[314482119,1708375909930,-5000.0,0.00047123,36]
[314482120,1708375909939,-4924.17,0.00047123,30]
[314482121,1708375909948,-2194.88,0.00047123,30]
[314482122,1708375909957,-510.09245168,0.00047123,30]
[314482123,1708375909966,-6760.53,0.00047123,30]
[314482124,1708375909976,-1418.43,0.00047123,30]
[314482125,1708375909985,-707.46,0.00047123,30]
[314482126,1708375909994,-500.0,0.00047123,30]
[314482127,1708375910004,-500.0,0.00047123,30]
[314482128,1708375910014,-1586.82,0.00047123,30]
[314482129,1708375910024,-319.93855535,0.00047123,30]
[314482130,1708375910034,-385.16164018,0.00047123,30]
[314482131,1708375910044,-500.0,0.00047123,30]
[314482132,1708375910055,-6176.75,0.00047123,30]
[314482133,1708375910067,-974.61,0.00047123,30]
[314482134,1708375910079,-500.0,0.00047123,30]
[314482135,1708375910094,-502.06,0.00047123,30]
[314482136,1708375910104,-620.96,0.00047123,30]
[314482137,1708375910113,-500.0,0.00047123,30]
[314482138,1708375910123,-500.0,0.00047123,30]
[314482139,1708375910134,-1370.86,0.00047123,30]
[314482140,1708375910144,-500.0,0.00047123,30]
[314482141,1708375910153,-500.0,0.00047123,30]
[314482142,1708375910163,-18642.5,0.00047123,30]
[314482143,1708375910172,-500.0,0.00047123,30]
[314482144,1708375910182,-957.13,0.00047123,30]
[314482145,1708375910191,-664.1,0.00047123,30]
[314482146,1708375910200,-500.0,0.00047123,30]
[314482147,1708375910210,-2270.35,0.00047123,30]
[314482148,1708375910219,-1421.33,0.00047123,30]
[314482149,1708375910228,-1319.59,0.00047123,30]
[314482150,1708375910238,-528.304876,0.00047123,30]
[314482151,1708375910248,-500.0,0.00047123,30]
[314482152,1708375910257,-43487.96,0.00047123,30]
[314482153,1708375910266,-275.04073094,0.00047123,30]
[314482154,1708375910275,-1370.06,0.00047123,30]
[314482155,1708375910285,-3424.97,0.00047123,30]
[314482156,1708375910295,-4401.37,0.00047123,30]
[314482157,1708375910305,-500.0,0.00047123,30]
[314482158,1708375910315,-500.0,0.00047123,30]
[314482159,1708375910325,-2622.18,0.00047123,30]
[314482160,1708375910335,-500.0,0.00047123,30]
[314482161,1708375910345,-500.0,0.00047123,30]
[314482162,1708375910355,-500.0,0.00047123,30]
[314482163,1708375910364,-500.0,0.00047123,30]
[314482164,1708375910375,-1138.11,0.00047123,30]
[314482165,1708375910386,-731.53,0.00047123,30]
[314482166,1708375910396,-500.0,0.00047123,30]
[314482167,1708375910407,-563.75280112,0.00047123,30]
[314482168,1708375910417,-500.0,0.00047123,30]
[314482169,1708375910427,-500.0,0.00047123,30]
[314482170,1708375910520,-3031.14,0.00047123,30]
[314482171,1708375910531,-500.0,0.00047123,30]
[314482172,1708375910541,-924.5,0.00047123,30]
[314482173,1708375910551,-500.0,0.00047123,30]
[314482174,1708375910560,-724.1,0.00047123,2]
[314482175,1708375910570,-501.9,0.00047123,30]
[314482176,1708375910579,-500.0,0.00047123,30]
[314482177,1708375910589,-500.0,0.00047123,30]
[314482178,1708375910599,-730.67,0.00047123,30]
[314482179,1708375910608,-582.09494367,0.00047123,30]
[314482180,1708375910617,-500.0,0.00047123,30]
[314482181,1708375910627,-500.0,0.00047123,30]
[314482182,1708375910636,-500.0,0.00047123,30]
[314482183,1708375910646,-500.0,0.00047123,30]
[314482184,1708375910655,-2841.63,0.00047123,30]
[314482185,1708375910665,-500.0,0.00047123,30]
[314482186,1708375910675,-8215.23,0.00047123,30]
[314482187,1708375910684,-500.0,0.00047123,30]
[314482188,1708375910693,-642.81,0.00047123,30]
[314482189,1708375910702,-500.0,0.00047123,30]
[314482190,1708375910711,-525.60049975,0.00047123,30]
[314482191,1708375910720,-2832.73,0.00047123,30]
[314482192,1708375910729,-506.74,0.00047123,30]
[314482193,1708375910739,-2484.41,0.00047123,30]
[314482194,1708375910748,-3313.69,0.00047123,30]
[314482195,1708375910758,-3103.46,0.00047123,30]
[314482196,1708375910768,-2792.02,0.00047123,30]
[314482197,1708375910777,-500.0,0.00047123,30]
[314482198,1708375910788,-500.0,0.00047123,30]
[314482199,1708375910798,-500.0,0.00047123,30]
[314482200,1708375910809,-3395.26,0.00047123,30]
[314482201,1708375910819,-974.83,0.00047123,30]
[314482202,1708375910829,-1617.41,0.00047123,30]
[314482203,1708375910840,-500.0,0.00047123,30]
[314482204,1708375910850,-571.28,0.00047123,30]
[314482205,1708375910860,-4198.24,0.00047123,30]
[314482206,1708375910870,-500.0,0.00047123,30]
[314482207,1708375910880,-1617.03,0.00047123,30]
[314482208,1708375910892,-1442.14,0.00047123,30]
[314482209,1708375910902,-555.41,0.00047123,30]
[314482210,1708375910912,-500.0,0.00047123,30]
[314482211,1708375910922,-500.0,0.00047123,30]
[314482212,1708375910932,-500.0,0.00047123,30]
[314482213,1708375910942,-2704.31,0.00047123,30]
[314482214,1708375910952,-500.0,0.00047123,30]
[314482215,1708375910963,-3256.74,0.00047123,30]
[314482216,1708375910974,-1307.39,0.00047123,30]
[314482217,1708375910984,-10591.79,0.00047123,30]
[314482218,1708375910994,-906.19,0.00047123,30]
[314482219,1708375911004,-1843.46,0.00047123,30]
[314482220,1708375911014,-500.0,0.00047123,30]
[314482221,1708375911023,-500.0,0.00047123,30]
[314482222,1708375911034,-500.0,0.00047123,30]
[314482223,1708375911043,-2160.68,0.00047123,30]
[314482224,1708375911053,-500.0,0.00047123,30]
[314482225,1708375911062,-1427.99,0.00047123,30]
[314482226,1708375911072,-595.56,0.00047123,30]
[314482227,1708375911083,-538.66,0.00047123,30]
[314482228,1708375911093,-645.76,0.00047123,30]
[314482229,1708375911102,-500.0,0.00047123,30]
[314482230,1708375911112,-993.04,0.00047123,30]
[314482231,1708375911122,-2630.29,0.00047123,30]
[314482232,1708375911132,-500.0,0.00047123,30]
[314482233,1708375911142,-688.24,0.00047123,30]
[314482234,1708375911152,-500.0,0.00047123,30]
[314482235,1708375911164,-1027.61,0.00047123,30]
[314482236,1708375911174,-1435.94,0.00047123,30]
[314482237,1708375911184,-1182.36,0.00047123,30]
[314482238,1708375911194,-10839.07,0.00047123,30]
[314482239,1708375911204,-1000.0,0.00047123,7]
[314482240,1708375911214,-500.0,0.00047123,30]
[314482241,1708375911223,-500.0,0.00047123,30]
[314482242,1708375911233,-2808.92,0.00047123,30]
[314482243,1708375911244,-500.0,0.00047123,30]
[314482244,1708375911253,-500.0,0.00047123,30]
[314482245,1708375911263,-532.30560279,0.00047123,30]
[314482246,1708375911273,-697.96,0.00047123,30]
[314482247,1708375911284,-796.11,0.00047123,30]
[314482248,1708375911293,-500.0,0.00047123,30]
[314482249,1708375911303,-571.63,0.00047123,30]
[314482250,1708375911312,-500.0,0.00047123,30]
[314482251,1708375911322,-5101.05,0.00047123,30]
[314482252,1708375911331,-553.84,0.00047123,30]
[314482253,1708375911343,-3052.86,0.00047123,30]
[314482254,1708375911353,-1303.89,0.00047123,30]
[314482255,1708375911364,-500.0,0.00047123,30]
[314482256,1708375911374,-1201.23,0.00047123,30]
[314482257,1708375911384,-500.0,0.00047123,30]
[314482258,1708375911394,-500.0,0.00047123,30]
[314482259,1708375911405,-500.0,0.00047123,30]
[314482260,1708375911415,-500.0,0.00047123,30]
[314482261,1708375911425,-656.54,0.00047123,30]
[314482262,1708375911436,-3044.92,0.00047123,30]
[314482263,1708375911446,-2710.85,0.00047123,30]
[314482264,1708375911456,-991.51,0.00047123,30]
[314482265,1708375911467,-500.0,0.00047123,30]
[314482266,1708375911477,-1083.47,0.00047123,30]
[314482267,1708375911487,-500.0,0.00047123,30]
[314482268,1708375911497,-4385.72,0.00047123,30]
[314482269,1708375911507,-500.0,0.00047123,30]
[314482270,1708375911517,-500.0,0.00047123,30]
[314482271,1708375911527,-500.0,0.00047123,30]
[314482272,1708375911539,-500.0,0.00047123,30]
[314482273,1708375911549,-500.0,0.00047123,30]
[314482274,1708375911559,-500.0,0.00047123,30]
[314482275,1708375911569,-500.0,0.00047123,30]
[314482276,1708375911579,-500.0,0.00047123,30]
[314482277,1708375911589,-500.0,0.00047123,30]
[314482278,1708375911598,-500.0,0.00047123,30]
[314482279,1708375911609,-3967.79,0.00047123,30]
[314482280,1708375911619,-939.16,0.00047123,30]
[314482281,1708375911629,-587.09,0.00047123,30]
[314482282,1708375911638,-10289.24,0.00047123,30]
[314482283,1708375911649,-2003.31,0.00047123,30]
[314482284,1708375911658,-500.0,0.00047123,30]
[314482285,1708375911668,-500.0,0.00047123,30]
[314482286,1708375911678,-500.0,0.00047123,30]
[314482287,1708375911688,-990.49,0.00047123,30]
[314482288,1708375911698,-500.0,0.00047123,30]
[314482289,1708375911707,-3009.13,0.00047123,30]
[314482290,1708375911717,-500.0,0.00047123,30]
[314482291,1708375911726,-602.37902379,0.00047123,30]
[314482292,1708375911735,-500.0,0.00047123,14]
[314482293,1708375911744,-5612.0,0.00047123,30]
[314482294,1708375911754,-9120.54,0.00047123,30]
[314482295,1708375911763,-500.0,0.00047123,30]
[314482296,1708375911773,-3562.84,0.00047123,30]
[314482297,1708375911783,-500.0,0.00047123,30]
[314482298,1708375911792,-500.0,0.00047123,30]
[314482299,1708375911802,-500.0,0.00047123,30]
[314482300,1708375911812,-3072.77,0.00047123,30]
[314482301,1708375911821,-500.0,0.00047123,30]
[314482302,1708375911830,-500.0,0.00047123,30]
[314482303,1708375911840,-500.0,0.00047123,30]
[314482304,1708375911850,-500.0,0.00047123,30]
[314482305,1708375911859,-500.0,0.00047123,30]
[314482306,1708375911868,-2054.19,0.00047123,30]
[314482307,1708375911877,-1723.46,0.00047123,30]
[314482308,1708375911887,-500.0,0.00047123,30]
[314482309,1708375911896,-1071.31,0.00047123,30]
[314482310,1708375911905,-1151.9,0.00047123,30]
[314482311,1708375911914,-545.97,0.00047123,30]
[314482312,1708375911923,-2309.28,0.00047123,30]
[314482313,1708375911933,-500.0,0.00047123,2]
[314482314,1708375911943,-500.0,0.00047123,30]
[314482315,1708375911953,-500.0,0.00047123,30]
[314482316,1708375911963,-1803.4,0.00047123,30]
[314482317,1708375911972,-500.0,0.00047123,30]
[314482318,1708375911982,-1886.18,0.00047123,30]
[314482319,1708375911992,-231.24286887,0.00047123,30]
[314482320,1708375912001,-500.0,0.00047123,30]
[314482321,1708375912010,-500.0,0.00047123,30]
[314482322,1708375912020,-2872.4,0.00047123,30]
[314482323,1708375912029,-2704.83,0.00047123,30]
[314482324,1708375912039,-500.0,0.00047123,30]
[314482325,1708375912049,-500.0,0.00047123,30]
[314482326,1708375912059,-542.05,0.00047123,30]
[314482327,1708375912070,-721.8,0.00047123,30]
[314482328,1708375912080,-520.83,0.00047123,30]
[314482329,1708375912092,-500.0,0.00047123,30]
[314482330,1708375912102,-3755.12,0.00047123,30]
[314482331,1708375912111,-500.0,0.00047123,30]
[314482332,1708375912120,-4422.39,0.00047123,30]
[314482333,1708375912131,-500.0,0.00047123,30]
[314482334,1708375912140,-3732.75,0.00047123,30]
[314482335,1708375912149,-2288.52,0.00047123,30]
[314482336,1708375912158,-500.0,0.00047123,30]
[314482337,1708375912168,-500.0,0.00047123,30]
[314482338,1708375912177,-500.0,0.00047123,30]
[314482339,1708375912186,-500.0,0.00047123,30]
[314482340,1708375912195,-500.0,0.00047123,30]
[314482341,1708375912204,-500.87,0.00047123,30]
[314482342,1708375912213,-4475.17,0.00047123,30]
[314482343,1708375912223,-500.0,0.00047123,30]
[314482344,1708375912233,-500.0,0.00047123,30]